Workbook

Sheet Technické pokyny

Sheet Oddíl 1 - ÚVOD
D3: ŽÁDOST O POSKYTNUTÍ PODPORY
D4: z grantového systému pro diakonické a rozvojové projekty ČCE pro rok 2018
B6: Evidenční číslo (žadatel nevyplňuje)
B7: Název grantového programu | I7: Evangelické tábory pro děti a mládež 2018
B8: Název projektu
B9: Lokalizace projektu (Město/obec, sbor, seniorát)
B10: Žadatel | E10: Úplný název
E11: Sídlo žadatele (ulice, obec, PSČ)
E12: IČ
E13: Právní status
E14: Bank. spojení (název banky, č. účtu)
E15: Tel., Fax, E-mail
E16: Statutární zástupci
E17: Kontaktní osoba
A20: @^%#7 | B20: 1. Stručná charakteristika činnosti žadatele
B21: (Sbory nevyplňují)
B23: Je žadatel plátcem DPH? | O23: Prosím vyberte:
B24: Má žadatel nárok na odpočet DPH? | O24: Prosím vyberte: | U24: Ano
U25: Ne
B26: 2. Žádost zpracoval:
B27: (Jméno, název instituce, kontaktní údaje)

Sheet Oddíl 2 - POPIS
B2: 3. Odůvodnění projektu
B3: =IF(LEN(B4)>2000,"PŘÍLIŠ MNOHO ZNAKŮ, MAXIMUM 2000!","Maximálně 2000 znaků") -> Maximálně 2000 znaků | J3: Aktuální délka: | N3: =LEN(B4) -> 0 | O3: znaků
B6: 4. Cíle projektu, cílové skupiny
B7: =IF(LEN(B8)>1500,"PŘÍLIŠ MNOHO ZNAKŮ, MAXIMUM 1500!","Maximálně 1500 znaků") -> Maximálně 1500 znaků | J7: Aktuální délka: | N7: =LEN(B8) -> 0 | O7: znaků
B10: 5. Popis projektu
B11: =IF(LEN(B12)>3000,"PŘÍLIŠ MNOHO ZNAKŮ, MAXIMUM 3000!","Maximálně 3000 znaků") -> Maximálně 3000 znaků | J11: Aktuální délka: | N11: =LEN(B12) -> 0 | O11: znaků
B15: 6. Výstupy projektu
B16: =IF(LEN(B17)>1500,"PŘÍLIŠ MNOHO ZNAKŮ, MAXIMUM 1500!","Maximálně 1500 znaků") -> Maximálně 1500 znaků | J16: Aktuální délka: | N16: =LEN(B17) -> 0 | O16: znaků
B19: 7. Dlouhodobé náklady vyvolané realizací projektu a jejich pokrytí
B20: =IF(LEN(B21)>1500,"PŘÍLIŠ MNOHO ZNAKŮ, MAXIMUM 1500!","Maximálně 1500 znaků") -> Maximálně 1500 znaků | J20: Aktuální délka: | N20: =LEN(B21) -> 0 | O20: znaků
B23: 8. Organizační a odborné zabezpečení projektu
B24: =IF(LEN(B25)>1500,"PŘÍLIŠ MNOHO ZNAKŮ, MAXIMUM 1500!","Maximálně 1500 znaků") -> Maximálně 1500 znaků | J24: Aktuální délka: | N24: =LEN(B25) -> 0 | O24: znaků

Sheet Oddíl 3 - HARMONOGRAM
B2: 9. Časový harmonogram realizace projektu - začátek/ukončení projektu
B3: Aktivity projektu | G3: 2017-09-01 | H3: 2017-10-01 | I3: 2017-11-01 | J3: 2017-12-01 | K3: 2018-01-01 | L3: 2018-02-01 | M3: 2018-03-01 | N3: 2018-04-01 | O3: 2018-05-01 | P3: 2018-06-01 | Q3: 2018-07-01 | R3: 2018-08-01 | S3: 2018-09-01 | T3: 2018-10-01 | U3: 2018-11-01 | V3: 2018-12-01
B4: Podání žádosti | G4: X
B5: Podpis smlouvy
B13: Závěrečná zpráva a vyúčtování
B14: @^%#1
B15: Prostor pro případné komentáře harmonogramu realizace (nepovinné)

Sheet Oddíl 4 - ROZPOČET
B2: 10. Rozpočet projektu
B4: 10A. Struktura rozpočtových výdajů - pouze uznatelné výdaje
N5: Náklady celkem | R5: Z toho požadováno z DaRP
A6: @^%#2 | B6: I. Stavební práce (stavby, rekonstrukce, opravy) | N6: =ROUND(SUM(N7:P11),0) -> 0 | Q6: Kč | R6: =ROUND(SUM(R7:T11),0) -> 0 | U6: Kč
C7: 1.01 | Q7: Kč | R7: =ROUNDDOWN(N7*0.9,0) -> 0 | U7: Kč
C8: =C7+0.01 -> 1.02 | Q8: Kč | R8: =ROUNDDOWN(N8*0.9,0) -> 0 | U8: Kč
C9: =C8+0.01 -> 1.03 | Q9: Kč | R9: 0 | U9: Kč
C10: =C9+0.01 -> 1.04 | Q10: Kč | R10: 0 | U10: Kč
C11: =C10+0.01 -> 1.05 | Q11: Kč | R11: 0 | U11: Kč
A12: @^%#3 | B12: II. Vybavení (nábytek, zařízení, nádobí, přístroje, hračky, aj.) | N12: =ROUND(SUM(N13:P17),0) -> 0 | Q12: Kč | R12: =ROUND(SUM(R13:T17),0) -> 0 | U12: Kč
C13: 2.01 | Q13: Kč | R13: =ROUNDDOWN(N13*0.9,0) -> 0 | U13: Kč
C14: =C13+0.01 -> 2.02 | Q14: Kč | R14: 0 | U14: Kč
C15: =C14+0.01 -> 2.03 | Q15: Kč | R15: 0 | U15: Kč
C16: =C15+0.01 -> 2.04 | Q16: Kč | R16: 0 | U16: Kč
C17: =C16+0.01 -> 2.05 | Q17: Kč | R17: 0 | U17: Kč
A18: @^%#4 | B18: III. Publikace, propagace (plakáty, brožury aj.) | N18: =ROUND(SUM(N19:P23),0) -> 0 | Q18: Kč | R18: =ROUND(SUM(R19:T23),0) -> 0 | U18: Kč
C19: 3.01 | Q19: Kč | R19: =ROUNDDOWN(N19*0.9,0) -> 0 | U19: Kč
C20: =C19+0.01 -> 3.02 | Q20: Kč | R20: 0 | U20: Kč
C21: =C20+0.01 -> 3.03 | Q21: Kč | R21: 0 | U21: Kč
C22: =C21+0.01 -> 3.04 | Q22: Kč | R22: 0 | U22: Kč
C23: =C22+0.01 -> 3.05 | Q23: Kč | R23: 0 | U23: Kč
A24: @^%#5 | B24: IV. Přednášející, vystupující, aj. (odměny, cestovné, atd.) | N24: =ROUND(SUM(N25:P29),0) -> 0 | Q24: Kč | R24: =ROUND(SUM(R25:T29),0) -> 0 | U24: Kč
C25: 4.01 | Q25: Kč | R25: =ROUNDDOWN(N25*0.9,0) -> 0 | U25: Kč
C26: =C25+0.01 -> 4.02 | Q26: Kč | R26: 0 | U26: Kč
C27: =C26+0.01 -> 4.03 | Q27: Kč | R27: 0 | U27: Kč
C28: =C27+0.01 -> 4.04 | Q28: Kč | R28: 0 | U28: Kč
C29: =C28+0.01 -> 4.05 | Q29: Kč | R29: 0 | U29: Kč
B30: V. Administrace, koordinace (telekomunikace, kopírování kanc. materiál, příp. odměny za koordinaci) – uznatelné pouze jako paušální částka do výše max. 5% z celkových uznatelných výdajů (lze i nižší) | N30: =ROUNDDOWN(((N31+N24+N18+N12+N6)/0.95) - (N31+N24+N18+N12+N6),0) -> 0 | Q30: Kč | R30: =ROUNDDOWN(N30*0.9,0) -> 0 | U30: Kč
A31: @^%#6 | B31: VI. Jiné (specifikujte) | N31: =ROUND(SUM(N32:P36),0) -> 0 | Q31: Kč | R31: =ROUND(SUM(R32:T36),0) -> 0 | U31: Kč
C32: 6.01 | Q32: Kč | R32: =ROUNDDOWN(N32*0.9,0) -> 0 | U32: Kč
C33: =C32+0.01 -> 6.02 | Q33: Kč | R33: 0 | U33: Kč
C34: =C33+0.01 -> 6.03 | Q34: Kč | R34: 0 | U34: Kč
C35: =C34+0.01 -> 6.04 | Q35: Kč | R35: 0 | U35: Kč
C36: =C35+0.01 -> 6.05 | Q36: Kč | R36: 0 | U36: Kč
B37: CELKOVÉ UZNATELNÉ VÝDAJE PROJEKTU: | N37: =SUM(N31,N24,N18,N12,N6,N30) -> 0 | R37: Kč
B38: =IF(AND(S38>90,N37<>0),"POŽADUJETE VYŠŠÍ PODPORU NEŽ 90%!","CELK. VÝŠE POŽADOVANÉ PODPORY Z DaRP:") -> CELK. VÝŠE POŽADOVANÉ PODPORY Z DaRP: | N38: =SUM(R31,R24,R18,R12,R6,R30) -> 0 | R38: Kč | S38: =IF(N37<>0,N38/N37*100,"-") -> - | U38: %
B39: Žadatelé, kteří mohou uplatnit odpočet DPH na vstupu, uvádějí výdaje bez DPH. Ostatní uvádějí výdaje včetně DPH.
B41: Neuznatelné výdaje - nepovinná položka - pokud je realizace projektu spojena s náklady nad rámec výše uvedených, které jsou z pohledu grantového systému pro DaRP neuznatelné, uveďte povahu těchto nákladů, jejich výši a zdroje jejich pokrytí. Připomínáme, že neuznatelné náklady nelze započíst do spolufinancování.
B44: 10B. Struktura rozpočtových zdrojů
B45: Požadovaná výše podpory z grantového systému | N45: =N38 -> 0 | U45: Kč
B46: Vlastní prostředky žadatele | N46: =N37-SUM(N45,N48:T53) -> 0 | U46: Kč
B47: Příspěvek obce či jiného subjektu | U47: Kč
B48: Očekávané příjmy žadatele (účastnické poplatky apod.) | U48: Kč
B49: Granty, dary | U49: Kč
B50: Jiné (specifikujte) | U50: Kč
U51: Kč
U52: Kč
U53: Kč
B54: ROZPOČTOVÉ ZDROJE CELKEM | N54: =SUM(N45:T53) -> 0 | U54: Kč
B56: Bližší specifikace rozpočtových zdrojů
B59: Do rozpočtových zdrojů nelze zahrnout jiné podpůrné systémy v rámci ČCE (Jeronymova jednota, granty ze seniorátu atp.)!

Sheet Oddíl 5 - ZÁVĚR
A2: @^%#8 | B2: 11. Seznam příloh
B3: Uveďte seznam všech příloh, které k žádosti přikládáte. Přílohy očíslujte. Předepsané, světle šedě podbarvené přílohy (1. - 5.) jsou povinné, další (nepovinné) přílohy uveďte níže (6. a dále)
B4: 1. | C4: Kopie dokumentů dokládajících vlastnický nebo dlouhodobý nájemní vztah k nemovitostem a souhlas majitele nemovitosti s provedením staveb či stavebních úprav (pouze v případě projektů zahrnujících stavební práce týkající se nemovitostí)
B5: 2. | C5: Aktuální mapa s lokalizací místa realizace projektu (je-li místo realizace projektu odlišné od sídla sboru, který je nositelem nebo spolupředkladatelem projektu)
B6: 3. | C6: Písemné potvrzení příslušného sboru ČCE o spolupráci na projektu - (u žádostí podávaných jiným oprávněným žadatelem než sborem ČCE)
B7: 4. | C7: Kopie dokumentů prokazujících registraci žadatele a uvádějících rovněž jméno jeho statutárního zástupce (u žádostí podávaných jiným oprávněným žadatelem než sborem ČCE)
B8: 5. | C8: Stanovisko seniorátního výboru (u žádostí týkajících se projektů realizovaných farním sborem nebo ve spolupráci s ním)
B9: 6.
A34: @^%#9
B56: Razítko a podpisy statutárních zástupců žadatele
B59: ________________________________________________________________________________
